fUST/lending_fUST_20250718
["ID","MTS","AMOUNT","RATE_DAILY","PERIOD"]
[373075405,1752853849492,-1482.47,0.00017027,2]
[373075407,1752853849504,-460.0,0.00017028,2]
[373075409,1752853849515,-460.0,0.00017028,2]
[373075411,1752853849525,-460.0,0.00017028,2]
[373075413,1752853849535,-1482.47,0.00017028,2]
[373075415,1752853849545,-1482.47,0.00017028,2]
[373075417,1752853849555,-1482.47,0.00017028,2]
[373075419,1752853849565,-1482.47,0.00017028,2]
[373075421,1752853849575,-1482.60199499,0.00017028,2]
[373075423,1752853849584,-1460.0,0.00017028,2]
[373075424,1752853849594,-460.0,0.00017028,2]
[373075426,1752853849604,-2349.99,0.00017028,2]
[373075428,1752853849614,-460.0,0.00017028,2]
[373075430,1752853849623,-460.0,0.00017029,2]
[373075432,1752853849633,-1576.88,0.00017029,2]
[373075434,1752853849642,-460.0,0.00017029,2]
[373075436,1752853849652,-6625.51,0.00017029,2]
[373075438,1752853849661,-1369.47,0.00017029,2]
[373075440,1752853849671,-460.0,0.00017029,2]
[373075442,1752853849680,-151.0,0.0001703,2]
[373075444,1752853849690,-151.0,0.0001703,2]
[373075446,1752853849699,-151.0,0.0001703,2]
[373075448,1752853849709,-151.0,0.0001703,2]
[373075450,1752853849719,-151.0,0.0001703,2]
[373075452,1752853849728,-315.999114,0.0001703,2]
[373075454,1752853849738,-315.999114,0.0001703,2]
[373075456,1752853849750,-151.0,0.0001703,2]
[373075458,1752853849760,-151.0,0.0001703,2]
[373075460,1752853849770,-460.0,0.00017033,2]
[373075462,1752853849779,-509.9,0.00017033,2]
[373075464,1752853849789,-460.0,0.00017033,2]
[373075466,1752853849799,-460.0,0.00017033,2]
[373075468,1752853849809,-460.0,0.00017033,2]
[373075469,1752853849818,-460.0,0.00017033,2]
[373075471,1752853849828,-460.0,0.00017033,2]
[373075473,1752853849838,-460.0,0.00017033,2]
[373075475,1752853849848,-460.0,0.00017033,2]
[373075477,1752853849858,-460.0,0.00017033,2]
[373075479,1752853849867,-460.0,0.00017033,2]
[373075481,1752853849877,-460.0,0.00017033,2]
[373075483,1752853849886,-185.02,0.00017033,2]
[373075485,1752853849896,-460.0,0.00017033,2]
[373075487,1752853849905,-466.6653743,0.00017033,2]
[373075489,1752853849915,-460.0,0.00017033,2]
[373075491,1752853849924,-400.54044011,0.00017033,2]
[373075493,1752853849934,-460.0,0.00017033,2]
[373075495,1752853849943,-460.0,0.00017033,2]
[373075497,1752853849952,-460.0,0.00017033,2]
[373075499,1752853849962,-460.0,0.00017033,2]
[373075501,1752853849971,-460.0,0.00017033,2]
[373075503,1752853849981,-460.0,0.00017033,2]
[373075505,1752853849990,-460.0,0.00017033,2]
[373075507,1752853850001,-460.0,0.00017033,2]
[373075509,1752853850011,-460.0,0.00017033,2]
[373075511,1752853850020,-1975.14,0.00017033,2]
[373075513,1752853850029,-460.0,0.00017033,2]
[373075515,1752853850039,-460.0,0.00017033,2]
[373075516,1752853850048,-460.0,0.00017033,2]
[373075518,1752853850057,-5095.88,0.00017033,2]
[373075520,1752853850067,-460.0,0.00017034,2]
[373075522,1752853850076,-460.0,0.00017034,2]
[373075524,1752853850088,-460.0,0.00017034,2]
[373075526,1752853850098,-286.59412107,0.00017034,2]
[373075528,1752853850107,-460.0,0.00017034,2]
[373075530,1752853850117,-275.63244462,0.00017043,2]
[373075532,1752853850127,-404.0,0.00017076,2]
[373075534,1752853850137,-500.0,0.00017107,2]
[373075536,1752853850146,-500.0,0.00017118,2]
[373075538,1752853850157,-500.0,0.00017118,2]
[373075540,1752853850166,-2140.223847,0.00017176,2]
[373075542,1752853850176,-2750.30046724,0.00017198,2]
[373075544,1752853850186,-3012.560608,0.00017202,2]
[373075546,1752853850195,-7309.23847239,0.00017205,2]
[373075548,1752853850205,-151.0,0.00017208,2]
[373075550,1752853850214,-151.0,0.00017208,2]
[373075552,1752853850223,-151.0,0.00017208,2]
[373075554,1752853850232,-151.0,0.00017208,2]
[373075556,1752853850242,-976.89414555,0.00017284,2]
[373075558,1752853850253,-460.0,0.0001729,2]
[373075559,1752853850262,-460.0,0.0001729,2]
[373075561,1752853850272,-460.0,0.0001729,2]
[373075563,1752853850281,-460.0,0.00017291,2]
[373075565,1752853850291,-460.0,0.00017291,2]
[373075567,1752853850301,-460.0,0.00017291,2]
[373075569,1752853850310,-460.0,0.00017291,2]
[373075571,1752853850320,-460.0,0.00017291,2]
[373075573,1752853850329,-460.0,0.00017291,2]
[373075575,1752853850339,-2174.21,0.00017291,2]
[373075577,1752853850348,-467.59975641,0.00017292,2]
[373075579,1752853850358,-460.0,0.00017292,2]
[373075581,1752853850367,-530.05406527,0.00017292,2]
[373075583,1752853850377,-254.8889882,0.00017292,2]
[373075601,1752853850538,-205.1110118,0.00017292,2]
[373075603,1752853850548,-3492.55,0.00017292,2]
[373075605,1752853850559,-1022.73,0.00017292,2]
[373075607,1752853850569,-460.0,0.00017292,2]
[373075608,1752853850578,-460.0,0.00017292,2]
[373075610,1752853850587,-460.0,0.00017292,2]
[373075612,1752853850597,-541.98333998,0.00017292,2]
[373075614,1752853850607,-460.0,0.00017292,2]
[373075616,1752853850616,-2783.98,0.00017292,2]
[373075618,1752853850626,-460.0,0.00017292,2]
[373075620,1752853850636,-460.0,0.00017292,2]
[373075622,1752853850645,-460.0,0.00017292,2]
[373075624,1752853850654,-460.0,0.00017292,2]
[373075626,1752853850663,-2271.83,0.00017292,2]
[373075628,1752853850672,-518.95241946,0.00017292,2]
[373075638,1752853850750,-460.0,0.00017292,2]
[373075640,1752853850771,-460.0,0.00017292,2]
[373075642,1752853850781,-5610.71,0.00017292,2]
[373075644,1752853850791,-460.0,0.00017292,2]
[373075646,1752853850800,-547.21,0.00017292,2]
[373075648,1752853850810,-460.0,0.00017292,2]
[373075649,1752853850819,-460.0,0.00017292,2]
[373075651,1752853850829,-460.0,0.00017292,2]
[373075653,1752853850839,-460.0,0.00017293,2]
[373075655,1752853850854,-460.0,0.00017293,2]
[373075657,1752853850864,-460.0,0.00017293,2]
[373075659,1752853850874,-589.63144047,0.00017293,2]
[373075661,1752853850884,-463.48573571,0.00017293,2]
[373075663,1752853850894,-460.0,0.00017293,2]
[373075665,1752853850903,-460.0,0.00017293,2]
[373075667,1752853850913,-2538.12,0.00017293,2]
[373075669,1752853850922,-460.0,0.00017295,2]
[373075671,1752853850932,-460.0,0.00017295,2]
[373075673,1752853850941,-460.0,0.00017295,2]
[373075675,1752853850951,-460.0,0.00017295,2]
[373075677,1752853850961,-460.0,0.00017295,2]
[373075679,1752853850970,-460.0,0.00017295,2]
[373075681,1752853850980,-579.7592567,0.00017295,2]
[373075683,1752853850990,-460.0,0.00017295,2]
[373075685,1752853851000,-460.0,0.00017295,2]
[373075687,1752853851010,-460.0,0.00017295,2]
[373075689,1752853851019,-460.0,0.00017295,2]
[373075691,1752853851029,-460.0,0.00017295,2]
[373075692,1752853851038,-460.0,0.00017295,2]
[373075693,1752853851048,-460.0,0.00017295,2]
[373075694,1752853851058,-460.0,0.00017295,2]
[373075695,1752853851067,-460.0,0.00017295,2]
[373075696,1752853851078,-460.0,0.00017295,2]
[373075697,1752853851091,-460.0,0.00017295,2]
[373075698,1752853851100,-460.0,0.00017295,2]
[373075699,1752853851109,-460.0,0.00017295,2]
[373075700,1752853851118,-460.0,0.00017295,2]
[373075701,1752853851128,-578.3227966,0.00017295,2]
[373075702,1752853851138,-460.0,0.00017295,2]
[373075703,1752853851147,-876.51,0.00017295,2]
[373075704,1752853851161,-460.0,0.00017295,2]
[373075705,1752853851171,-460.0,0.00017295,2]
[373075706,1752853851181,-460.0,0.00017295,2]
[373075707,1752853851191,-460.0,0.00017295,2]
[373075708,1752853851201,-460.0,0.00017295,2]
[373075709,1752853851210,-460.0,0.00017295,2]
[373075710,1752853851220,-460.0,0.00017295,2]
[373075711,1752853851229,-460.0,0.00017295,2]
[373075712,1752853851240,-460.0,0.00017295,2]
[373075713,1752853851252,-460.0,0.00017295,2]
[373075714,1752853851261,-460.0,0.00017295,2]
[373075715,1752853851271,-603.3,0.00017295,2]
[373075716,1752853851281,-460.0,0.00017295,2]
[373075717,1752853851291,-484.25,0.00017295,2]
[373075718,1752853851301,-460.0,0.00017295,2]
[373075719,1752853851311,-1052.91,0.00017295,2]
[373075720,1752853851320,-558.87,0.00017295,2]
[373075721,1752853851330,-734.68,0.00017295,2]
[373075722,1752853851340,-452.90912256,0.00017295,2]
[373075723,1752853851350,-460.0,0.00017295,2]
[373075724,1752853851360,-460.0,0.00017295,2]
[373075725,1752853851371,-460.0,0.00017295,2]
[373075726,1752853851381,-460.0,0.00017295,2]
[373075727,1752853851391,-460.0,0.00017296,2]
[373075728,1752853851400,-460.0,0.00017296,2]
[373075729,1752853851410,-460.0,0.00017296,2]
[373075730,1752853851419,-1253.82,0.00017296,2]
[373075731,1752853851429,-460.0,0.00017296,2]
[373075732,1752853851439,-501.61,0.00017296,2]
[373075733,1752853851448,-460.0,0.00017296,2]
[373075734,1752853851458,-460.0,0.00017296,2]
[373075735,1752853851468,-460.0,0.00017296,2]
[373075736,1752853851478,-460.0,0.00017296,2]
[373075737,1752853851487,-622.24,0.00017296,2]
[373075738,1752853851499,-994.66,0.00017296,2]
[373075739,1752853851508,-460.0,0.000173,2]
[373075740,1752853851518,-460.0,0.000173,2]
[373075741,1752853851528,-551.26785098,0.000173,2]
[373075742,1752853851538,-460.0,0.000173,2]
[373075743,1752853851548,-460.0,0.000173,2]
[373075744,1752853851558,-460.0,0.000173,2]
[373075745,1752853851568,-460.0,0.000173,2]
[373075746,1752853851577,-460.0,0.000173,2]
[373075747,1752853851587,-460.0,0.000173,2]
[373075748,1752853851597,-460.0,0.000173,2]
[373075749,1752853851608,-460.0,0.000173,2]
[373075750,1752853851618,-460.0,0.000173,2]
[373075751,1752853851629,-460.0,0.000173,2]
[373075752,1752853851639,-460.0,0.000173,2]
[373075753,1752853851649,-460.0,0.000173,2]
[373075754,1752853851659,-730.27,0.000173,2]
[373075755,1752853851669,-595.54,0.000173,2]
[373075756,1752853851678,-460.0,0.000173,2]
[373075757,1752853851688,-460.0,0.000173,2]
[373075758,1752853851697,-460.0,0.000173,2]
[373075759,1752853851707,-460.0,0.000173,2]
[373075760,1752853851717,-460.0,0.000173,2]
[373075761,1752853851726,-460.0,0.000173,2]
[373075762,1752853851736,-460.0,0.000173,2]
[373075763,1752853851747,-460.0,0.000173,2]
[373075764,1752853851758,-460.0,0.000173,2]
[373075765,1752853851768,-1875.07,0.000173,2]
[373075766,1752853851781,-460.0,0.000173,2]
[373075767,1752853851791,-460.0,0.000173,2]
[373075768,1752853851801,-460.0,0.000173,2]
[373075769,1752853851810,-460.0,0.000173,2]
[373075770,1752853851820,-460.0,0.000173,2]
[373075771,1752853851829,-460.0,0.000173,2]
[373075772,1752853851839,-460.0,0.000173,2]
[373075773,1752853851848,-460.0,0.000173,2]
[373075774,1752853851858,-460.0,0.000173,2]
[373075775,1752853851867,-464.46585055,0.000173,2]
[373075776,1752853851876,-460.0,0.000173,2]
[373075777,1752853851886,-460.0,0.000173,2]
[373075778,1752853851895,-151.0,0.00017302,2]
[373075779,1752853851905,-151.0,0.00017302,2]
[373075780,1752853851915,-315.999114,0.00017302,2]
[373075781,1752853851925,-315.999114,0.00017302,2]
[373075782,1752853851934,-460.0,0.00017302,2]
[373075783,1752853851943,-460.0,0.00017302,2]
[373075784,1752853851953,-460.0,0.00017302,2]
[373075785,1752853851962,-1460.0,0.00017302,2]
[373075786,1752853851972,-460.0,0.00017302,2]
[373075787,1752853851981,-2349.99,0.00017302,2]
[373075788,1752853851991,-460.0,0.00017302,2]
[373075789,1752853852004,-460.0,0.00017303,2]
[373075790,1752853852013,-1576.88,0.00017303,2]
[373075791,1752853852022,-460.0,0.00017303,2]
[373075792,1752853852032,-6625.51,0.00017303,2]
[373075793,1752853852041,-1369.47,0.00017303,2]
[373075794,1752853852050,-460.0,0.00017303,2]
[373075795,1752853852059,-258.68158778,0.00017307,2]
[373075796,1752853852069,-509.9,0.00017307,2]
[373075797,1752853852079,-460.0,0.00017307,2]
[373075798,1752853852092,-531.90845831,0.00017307,2]
[373075799,1752853852101,-460.0,0.00017307,2]
[373075800,1752853852184,-460.0,0.00017307,2]
[373075801,1752853852193,-460.0,0.00017307,2]
[373075802,1752853852203,-460.0,0.00017307,2]
[373075803,1752853852212,-460.0,0.00017307,2]
[373075804,1752853852222,-460.0,0.00017307,2]
[373075805,1752853852232,-460.0,0.00017307,2]
[373075806,1752853852243,-460.0,0.00017307,2]
[373075807,1752853852254,-460.0,0.00017307,2]
[373075808,1752853852263,-467.13403449,0.00017307,2]
[373075809,1752853852273,-460.0,0.00017307,2]
[373075810,1752853852282,-185.68628087,0.00017307,2]
[373075811,1752853852292,-460.0,0.00017307,2]
[373075812,1752853852301,-174.11915676,0.00017307,2]
[373075813,1752853852311,-283.26931602,0.00017307,2]
[373075814,1752853852320,-1975.14,0.00017307,2]
[373075815,1752853852330,-460.0,0.00017307,2]
[373075816,1752853852340,-460.0,0.00017307,2]
[373075817,1752853852349,-460.0,0.00017307,2]
[373075818,1752853852360,-5095.88,0.00017307,2]
[373075819,1752853852369,-428.85506241,0.00017308,2]
[373075820,1752853852379,-460.0,0.00017308,2]
[373075821,1752853852390,-7309.23847239,0.00017432,2]
[373075822,1752853852400,-2140.223847,0.00017452,2]
[373075823,1752853852409,-890.10392682,0.00017563,2]
[373075824,1752853852419,-460.0,0.00017564,2]
[373075825,1752853852428,-460.0,0.00017564,2]
[373075826,1752853852438,-460.0,0.00017564,2]
[373075827,1752853852448,-460.0,0.00017565,2]
[373075828,1752853852458,-460.0,0.00017565,2]
[373075829,1752853852467,-460.0,0.00017565,2]
[373075830,1752853852477,-460.0,0.00017565,2]
[373075831,1752853852486,-460.0,0.00017565,2]
[373075832,1752853852497,-460.0,0.00017565,2]
[373075833,1752853852506,-2174.21,0.00017565,2]
[373075834,1752853852516,-460.0,0.00017566,2]
[373075835,1752853852526,-3492.55,0.00017566,2]
[373075836,1752853852536,-1022.73,0.00017566,2]
[373075837,1752853852545,-460.0,0.00017566,2]
[373075838,1752853852555,-460.0,0.00017566,2]
[373075839,1752853852566,-460.0,0.00017566,2]
[373075840,1752853852576,-460.0,0.00017566,2]
[373075841,1752853852586,-2783.98,0.00017566,2]
[373075842,1752853852595,-460.0,0.00017566,2]
[373075843,1752853852605,-460.0,0.00017566,2]
[373075844,1752853852614,-460.0,0.00017566,2]
[373075845,1752853852624,-460.0,0.00017566,2]
[373075846,1752853852634,-2271.83,0.00017566,2]
[373075847,1752853852644,-460.0,0.00017566,2]
[373075848,1752853852653,-420.23,0.00017566,2]
[373075849,1752853852663,-5610.71,0.00017566,2]
[373075850,1752853852673,-547.21,0.00017566,2]
[373075851,1752853852683,-460.0,0.00017566,2]
[373075852,1752853852692,-460.0,0.00017566,2]
[373075853,1752853852701,-460.0,0.00017566,2]
[373075854,1752853852711,-460.0,0.00017567,2]
[373075855,1752853852721,-460.0,0.00017567,2]
[373075856,1752853852731,-460.0,0.00017567,2]
[373075857,1752853852740,-460.0,0.00017567,2]
[373075858,1752853852752,-2538.12,0.00017567,2]
[373075859,1752853852762,-460.0,0.00017569,2]
[373075860,1752853852771,-460.0,0.00017569,2]
[373075861,1752853852781,-601.72539938,0.00017569,2]
[373075862,1752853852791,-460.0,0.00017569,2]
[373075863,1752853852800,-460.0,0.00017569,2]
[373075864,1752853852810,-460.0,0.00017569,2]
[373075865,1752853852820,-393.14000568,0.00017569,2]
[373075866,1752853852829,-460.0,0.00017569,2]
[373075867,1752853852839,-460.0,0.00017569,2]
[373075868,1752853852848,-460.0,0.00017569,2]
[373075869,1752853852858,-460.0,0.00017569,2]
[373075870,1752853852867,-460.0,0.00017569,2]
[373075871,1752853852877,-460.0,0.00017569,2]
[373075872,1752853852886,-460.0,0.00017569,2]
[373075873,1752853852895,-460.0,0.00017569,2]
[373075874,1752853852905,-460.0,0.00017569,2]
[373075875,1752853852914,-460.0,0.00017569,2]
[373075876,1752853852924,-460.0,0.00017569,2]
[373075877,1752853852933,-460.0,0.00017569,2]
[373075878,1752853852943,-460.0,0.00017569,2]
[373075879,1752853852953,-876.51,0.00017569,2]
[373075880,1752853852963,-312.03,0.00017569,2]
[373075881,1752853852972,-460.0,0.00017569,2]
[373075882,1752853852981,-460.0,0.00017569,2]
[373075883,1752853852991,-460.0,0.00017569,2]
[373075884,1752853853003,-460.0,0.00017569,2]
[373075885,1752853853012,-460.0,0.00017569,2]
[373075886,1752853853021,-460.0,0.00017569,2]
[373075887,1752853853031,-460.0,0.00017569,2]
[373075888,1752853853040,-460.0,0.00017569,2]
[373075889,1752853853050,-517.44,0.00017569,2]
[373075890,1752853853059,-460.0,0.00017569,2]
[373075891,1752853853069,-603.3,0.00017569,2]
[373075892,1752853853080,-460.0,0.00017569,2]
[373075893,1752853853092,-484.25,0.00017569,2]
[373075894,1752853853102,-460.0,0.00017569,2]
[373075895,1752853853112,-1052.91,0.00017569,2]
[373075896,1752853853121,-558.87,0.00017569,2]
[373075897,1752853853133,-734.68,0.00017569,2]
[373075898,1752853853143,-460.0,0.00017569,2]
[373075899,1752853853154,-460.0,0.00017569,2]
[373075900,1752853853167,-460.0,0.00017569,2]
[373075901,1752853853176,-460.0,0.00017569,2]
[373075902,1752853853186,-460.0,0.0001757,2]
[373075903,1752853853196,-460.0,0.0001757,2]
[373075904,1752853853205,-460.0,0.0001757,2]
[373075905,1752853853215,-1253.82,0.0001757,2]
[373075906,1752853853224,-460.0,0.0001757,2]
[373075907,1752853853234,-501.61,0.0001757,2]
[373075908,1752853853243,-460.0,0.0001757,2]
[373075911,1752853853255,-460.0,0.0001757,2]
[373075912,1752853853266,-460.0,0.0001757,2]
[373075914,1752853853276,-460.0,0.0001757,2]
[373075915,1752853853286,-622.24,0.0001757,2]
[373075916,1752853853295,-994.66,0.0001757,2]
[373075917,1752853853305,-419.95376447,0.00017574,2]
[373075918,1752853853314,-460.0,0.00017574,2]
[373075919,1752853853324,-460.0,0.00017574,2]
[373075920,1752853853334,-460.0,0.00017574,2]
[373075921,1752853853343,-460.0,0.00017574,2]
[373075922,1752853853352,-460.0,0.00017574,2]
[373075923,1752853853362,-460.0,0.00017574,2]
[373075924,1752853853371,-460.0,0.00017574,2]
[373075925,1752853853381,-460.0,0.00017574,2]
[373075926,1752853853390,-460.0,0.00017574,2]
[373075927,1752853853400,-460.0,0.00017574,2]
[373075928,1752853853477,-460.0,0.00017574,2]
[373075929,1752853853487,-730.27,0.00017574,2]
[373075930,1752853853499,-460.0,0.00017574,2]
[373075931,1752853853518,-460.0,0.00017574,2]
[373075932,1752853853528,-460.0,0.00017574,2]
[373075933,1752853853538,-460.0,0.00017574,2]
[373075934,1752853853547,-460.0,0.00017574,2]
[373075935,1752853853556,-460.0,0.00017574,2]
[373075936,1752853853566,-460.0,0.00017574,2]
[373075937,1752853853576,-529.27214663,0.00017574,2]
[373075938,1752853853586,-1875.07,0.00017574,2]
[373075939,1752853853596,-460.0,0.00017574,2]
[373075940,1752853853606,-460.0,0.00017574,2]
[373075941,1752853853615,-460.0,0.00017574,2]
[373075942,1752853853625,-460.0,0.00017574,2]
[373075943,1752853853634,-483.49120769,0.00017574,2]
[373075944,1752853853643,-460.0,0.00017574,2]
[373075945,1752853853653,-460.0,0.00017574,2]
[373075946,1752853853663,-460.0,0.00017574,2]
[373075947,1752853853672,-460.0,0.00017574,2]
[373075948,1752853853682,-460.0,0.00017574,2]
[373075949,1752853853691,-376.51007082,0.00017576,2]
[373075950,1752853853701,-460.0,0.00017576,2]
[373075951,1752853853711,-460.0,0.00017576,2]
[373075952,1752853853720,-1460.0,0.00017576,2]
[373075953,1752853853730,-460.0,0.00017576,2]
[373075954,1752853853740,-2349.99,0.00017576,2]
[373075955,1752853853753,-7309.23847239,0.00017576,2]
[373075956,1752853853764,-581.64193957,0.00017576,2]
[373075957,1752853853776,-460.0,0.00017577,2]
[373075958,1752853853786,-1576.88,0.00017577,2]
[373075959,1752853853795,-460.0,0.00017577,2]
[373075960,1752853853805,-6625.51,0.00017577,2]
[373075961,1752853853814,-151.0,0.00017577,2]
[373075962,1752853853824,-1369.47,0.00017577,2]
[373075963,1752853853833,-460.0,0.00017577,2]
[373075964,1752853853843,-151.0,0.00017578,2]
[373075965,1752853853852,-164.821622,0.00017578,2]
[373075966,1752853853862,-151.0,0.00017578,2]
[373075967,1752853853871,-151.0,0.00017578,2]
[373075968,1752853853881,-151.0,0.00017581,2]
[373075969,1752853853890,-151.0,0.00017581,2]
[373075970,1752853853900,-315.999114,0.00017581,2]
[373075971,1752853853910,-315.999114,0.00017581,2]
[373075972,1752853853919,-509.9,0.00017581,2]
[373075973,1752853853929,-460.0,0.00017581,2]
[373075974,1752853853939,-460.0,0.00017581,2]
[373075975,1752853853949,-460.0,0.00017581,2]
[373075976,1752853853958,-460.0,0.00017581,2]
[373075977,1752853853968,-460.0,0.00017581,2]
[373075978,1752853853977,-460.0,0.00017581,2]
[373075979,1752853853987,-460.0,0.00017581,2]
[373075980,1752853853998,-460.0,0.00017581,2]
[373075981,1752853854007,-460.0,0.00017581,2]
[373075982,1752853854017,-1975.14,0.00017581,2]
[373075983,1752853854027,-460.0,0.00017581,2]
[373075984,1752853854037,-460.0,0.00017581,2]
[373075985,1752853854046,-460.0,0.00017581,2]
[373075986,1752853854056,-5095.88,0.00017581,2]
[373075987,1752853854066,-828.94771973,0.00017655,2]
[373075988,1752853854075,-601.64389572,0.00017659,2]
[373075989,1752853854089,-1000.0,0.00017665,2]
[373075990,1752853854099,-1000.0,0.00017665,2]
[373075991,1752853854109,-2140.223847,0.00017728,2]
[373075992,1752853854119,-151.0,0.00017831,2]
[373075993,1752853854129,-523.86,0.00017833,3]
[373075994,1752853854139,-460.0,0.00017838,2]
[373075995,1752853854148,-460.0,0.00017838,2]
[373075996,1752853854158,-460.0,0.00017838,2]
[373075997,1752853854168,-460.0,0.00017839,2]
[373075998,1752853854177,-275.54820135,0.00017839,2]
[373075999,1752853854187,-460.0,0.00017839,2]
[373076000,1752853854197,-460.0,0.00017839,2]
[373076001,1752853854206,-460.0,0.00017839,2]
[373076002,1752853854216,-460.0,0.00017839,2]
[373076004,1752853854225,-2174.21,0.00017839,2]
[373076005,1752853854235,-460.0,0.0001784,2]
[373076007,1752853854245,-3492.55,0.0001784,2]
[373076009,1752853854255,-1022.73,0.0001784,2]
[373076011,1752853854265,-460.0,0.0001784,2]
[373076012,1752853854274,-460.0,0.0001784,2]
[373076014,1752853854284,-460.0,0.0001784,2]
[373076016,1752853854294,-460.0,0.0001784,2]
[373076018,1752853854303,-2783.98,0.0001784,2]
[373076019,1752853854313,-541.41249522,0.0001784,2]
[373076021,1752853854322,-460.0,0.0001784,2]
[373076023,1752853854332,-460.0,0.0001784,2]
[373076025,1752853854342,-2271.83,0.0001784,2]
[373076027,1752853854351,-460.0,0.0001784,2]
[373076028,1752853854361,-5610.71,0.0001784,2]
[373076030,1752853854371,-547.21,0.0001784,2]
[373076032,1752853854386,-460.0,0.0001784,2]
[373076034,1752853854401,-460.0,0.0001784,2]
[373076036,1752853854410,-460.0,0.00017841,2]
[373076038,1752853854420,-460.0,0.00017841,2]
[373076040,1752853854430,-460.0,0.00017841,2]
[373076041,1752853854439,-2538.12,0.00017841,2]
[373076043,1752853854449,-460.0,0.00017843,2]
[373076045,1752853854458,-460.0,0.00017843,2]
[373076047,1752853854469,-460.0,0.00017843,2]
[373076049,1752853854479,-460.0,0.00017843,2]
[373076051,1752853854488,-460.0,0.00017843,2]
[373076052,1752853854499,-460.0,0.00017843,2]
[373076054,1752853854509,-460.0,0.00017843,2]
[373076056,1752853854519,-460.0,0.00017843,2]
[373076058,1752853854528,-460.0,0.00017843,2]
[373076059,1752853854539,-460.0,0.00017843,2]
[373076061,1752853854550,-297.39647572,0.00017843,2]
[373076063,1752853854560,-151.926616,0.00017843,2]
[373076065,1752853854570,-460.0,0.00017843,2]
[373076067,1752853854580,-460.0,0.00017843,2]
[373076068,1752853854590,-460.0,0.00017843,2]
[373076070,1752853854600,-460.0,0.00017843,2]
[373076072,1752853854610,-460.0,0.00017843,2]
[373076074,1752853854620,-460.0,0.00017843,2]
[373076081,1752853854698,-460.0,0.00017843,2]
[373076083,1752853854709,-876.51,0.00017843,2]
[373076085,1752853854718,-460.0,0.00017843,2]
[373076087,1752853854728,-460.0,0.00017843,2]
[373076089,1752853854737,-460.0,0.00017843,2]
[373076090,1752853854747,-460.0,0.00017843,2]
[373076092,1752853854756,-460.0,0.00017843,2]
[373076094,1752853854766,-460.0,0.00017843,2]
[373076096,1752853854775,-460.0,0.00017843,2]
[373076098,1752853854785,-460.0,0.00017843,2]
[373076100,1752853854795,-460.0,0.00017843,2]
[373076101,1752853854804,-603.3,0.00017843,2]
[373076103,1752853854814,-460.0,0.00017843,2]
[373076105,1752853854823,-484.25,0.00017843,2]
[373076107,1752853854833,-594.23040154,0.00017843,2]
[373076108,1752853854842,-1052.91,0.00017843,2]
[373076110,1752853854851,-558.87,0.00017843,2]